Workbook

Sheet Kredi Hesaplayıcısı
B2: ÜNİVERSİTE KREDİSİ | G2: 50,000 TL | L2: 4067300.00%
B3: HESAPLAYICISI
B5: Aylık öğrenci kredisi geri ödemelerinizin toplamının ilk yıl alacağınız aylık maaşınızın %8'ini geçmemesi önerilir.
C7: Birleştirilmiş şu anki aylık ödemeniz: | F7: =ÜniversiteBorçları[[#Totals],[Şu Anki Aylık Ödeme]] -> 328.59 TL | I7: Birleştirilmiş zamanlanan aylık ödemeniz: | M7: =ÜniversiteBorçları[[#Totals],[Zamanlanan Ödeme]] -> 328.59 TL
C8: Aylık gelir yüzdesi: | F8: =ÜniversiteBorçları[[#Totals],[Şu Anki Aylık Ödeme]]/TahminiAylıkMaaş -> 7.89% | I8: Aylık gelir yüzdesi: | M8: =ÜniversiteBorçları[[#Totals],[Zamanlanan Ödeme]]/TahminiAylıkMaaş -> 7.89%
C11: GENEL KREDİ AYRINTILARI | G11: KREDİ GERİ ÖDEME VERİLERİ | J11: ÖDEME AYRINTILARI
C12: Kredi No. | D12: Krediyi Veren | E12: Kredi Miktarı | F12: Yıllık Faiz Oranı | G12: Başlama Tarihi | H12: Süre (Yıl) | I12: Bitiş Tarihi | J12: Şu Anki Aylık Ödeme | K12: Toplam Faiz | L12: Zamanlanan Ödeme | M12: Yıllık Ödeme
C13: 10998M88 | D13: Krediyi Veren 1 | E13: 10,000.00 TL | F13: 5.00% | G13: 4063400.00% | H13: 10 | I13: =IF(AND(ÜniversiteBorçları[[#This Row],[Başlama Tarihi]]>0,ÜniversiteBorçları[[#This Row],[Süre (Yıl)]]>0),EDATE(ÜniversiteBorçları[[#This Row],[Başlama Tarihi]],ÜniversiteBorçları[[#This Row],[Süre (Yıl)]]*12),"") -> 4428700.00% | J13: =IF(AND(BorçBaşlangıcıBugün,COUNT(ÜniversiteBorçları[[#This Row],[Kredi Miktarı]]:ÜniversiteBorçları[[#This Row],[Süre (Yıl)]])=4,ÜniversiteBorçları[[#This Row],[Başlama Tarihi]]<TODAY()),PMT(ÜniversiteBorçları[[#This Row],[Yıllık Faiz Oranı]]/12,ÜniversiteBorçları[[#This Row],[Süre (Yıl)]]*12,-ÜniversiteBorçları[[#This Row],[Kredi Miktarı]],0,0),"") -> 106.07 TL | K13: =IFERROR((ÜniversiteBorçları[[#This Row],[Zamanlanan Ödeme]]*(ÜniversiteBorçları[[#This Row],[Süre (Yıl)]]*12))-ÜniversiteBorçları[[#This Row],[Kredi Miktarı]],"") -> 2,727.86 TL | L13: =IF(COUNTA(ÜniversiteBorçları[[#This Row],[Kredi Miktarı]]:ÜniversiteBorçları[[#This Row],[Süre (Yıl)]])<>4,"",PMT(ÜniversiteBorçları[[#This Row],[Yıllık Faiz Oranı]]/12,ÜniversiteBorçları[[#This Row],[Süre (Yıl)]]*12,-ÜniversiteBorçları[[#This Row],[Kredi Miktarı]],0,0)) -> 106.07 TL | M13: =IFERROR(ÜniversiteBorçları[[#This Row],[Zamanlanan Ödeme]]*12,"") -> 1,272.79 TL
C14: 20987N87 | D14: Krediyi Veren 2 | E14: 8,000.00 TL | F14: 5.00% | G14: 4066400.00% | H14: 10 | I14: =IF(AND(ÜniversiteBorçları[[#This Row],[Başlama Tarihi]]>0,ÜniversiteBorçları[[#This Row],[Süre (Yıl)]]>0),EDATE(ÜniversiteBorçları[[#This Row],[Başlama Tarihi]],ÜniversiteBorçları[[#This Row],[Süre (Yıl)]]*12),"") -> 4431700.00% | J14: =IF(AND(BorçBaşlangıcıBugün,COUNT(ÜniversiteBorçları[[#This Row],[Kredi Miktarı]]:ÜniversiteBorçları[[#This Row],[Süre (Yıl)]])=4,ÜniversiteBorçları[[#This Row],[Başlama Tarihi]]<TODAY()),PMT(ÜniversiteBorçları[[#This Row],[Yıllık Faiz Oranı]]/12,ÜniversiteBorçları[[#This Row],[Süre (Yıl)]]*12,-ÜniversiteBorçları[[#This Row],[Kredi Miktarı]],0,0),"") -> 84.85 TL | K14: =IFERROR((ÜniversiteBorçları[[#This Row],[Zamanlanan Ödeme]]*(ÜniversiteBorçları[[#This Row],[Süre (Yıl)]]*12))-ÜniversiteBorçları[[#This Row],[Kredi Miktarı]],"") -> 2,182.29 TL | L14: =IF(COUNTA(ÜniversiteBorçları[[#This Row],[Kredi Miktarı]]:ÜniversiteBorçları[[#This Row],[Süre (Yıl)]])<>4,"",PMT(ÜniversiteBorçları[[#This Row],[Yıllık Faiz Oranı]]/12,ÜniversiteBorçları[[#This Row],[Süre (Yıl)]]*12,-ÜniversiteBorçları[[#This Row],[Kredi Miktarı]],0,0)) -> 84.85 TL | M14: =IFERROR(ÜniversiteBorçları[[#This Row],[Zamanlanan Ödeme]]*12,"") -> 1,018.23 TL
C15: 36785LM | D15: Krediyi Veren 3 | E15: 6,000.00 TL | F15: 4.50% | G15: 4096900.00% | H15: 10 | I15: =IF(AND(ÜniversiteBorçları[[#This Row],[Başlama Tarihi]]>0,ÜniversiteBorçları[[#This Row],[Süre (Yıl)]]>0),EDATE(ÜniversiteBorçları[[#This Row],[Başlama Tarihi]],ÜniversiteBorçları[[#This Row],[Süre (Yıl)]]*12),"") -> 4462100.00% | J15: =IF(AND(BorçBaşlangıcıBugün,COUNT(ÜniversiteBorçları[[#This Row],[Kredi Miktarı]]:ÜniversiteBorçları[[#This Row],[Süre (Yıl)]])=4,ÜniversiteBorçları[[#This Row],[Başlama Tarihi]]<TODAY()),PMT(ÜniversiteBorçları[[#This Row],[Yıllık Faiz Oranı]]/12,ÜniversiteBorçları[[#This Row],[Süre (Yıl)]]*12,-ÜniversiteBorçları[[#This Row],[Kredi Miktarı]],0,0),"") -> 62.18 TL | K15: =IFERROR((ÜniversiteBorçları[[#This Row],[Zamanlanan Ödeme]]*(ÜniversiteBorçları[[#This Row],[Süre (Yıl)]]*12))-ÜniversiteBorçları[[#This Row],[Kredi Miktarı]],"") -> 1,461.97 TL | L15: =IF(COUNTA(ÜniversiteBorçları[[#This Row],[Kredi Miktarı]]:ÜniversiteBorçları[[#This Row],[Süre (Yıl)]])<>4,"",PMT(ÜniversiteBorçları[[#This Row],[Yıllık Faiz Oranı]]/12,ÜniversiteBorçları[[#This Row],[Süre (Yıl)]]*12,-ÜniversiteBorçları[[#This Row],[Kredi Miktarı]],0,0)) -> 62.18 TL | M15: =IFERROR(ÜniversiteBorçları[[#This Row],[Zamanlanan Ödeme]]*12,"") -> 746.20 TL
C16: 765R43 | D16: Krediyi Veren 4 | E16: 4,000.00 TL | F16: 5.00% | G16: 4103000.00% | H16: 5 | I16: =IF(AND(ÜniversiteBorçları[[#This Row],[Başlama Tarihi]]>0,ÜniversiteBorçları[[#This Row],[Süre (Yıl)]]>0),EDATE(ÜniversiteBorçları[[#This Row],[Başlama Tarihi]],ÜniversiteBorçları[[#This Row],[Süre (Yıl)]]*12),"") -> 4285600.00% | J16: =IF(AND(BorçBaşlangıcıBugün,COUNT(ÜniversiteBorçları[[#This Row],[Kredi Miktarı]]:ÜniversiteBorçları[[#This Row],[Süre (Yıl)]])=4,ÜniversiteBorçları[[#This Row],[Başlama Tarihi]]<TODAY()),PMT(ÜniversiteBorçları[[#This Row],[Yıllık Faiz Oranı]]/12,ÜniversiteBorçları[[#This Row],[Süre (Yıl)]]*12,-ÜniversiteBorçları[[#This Row],[Kredi Miktarı]],0,0),"") -> 75.48 TL | K16: =IFERROR((ÜniversiteBorçları[[#This Row],[Zamanlanan Ödeme]]*(ÜniversiteBorçları[[#This Row],[Süre (Yıl)]]*12))-ÜniversiteBorçları[[#This Row],[Kredi Miktarı]],"") -> 529.10 TL | L16: =IF(COUNTA(ÜniversiteBorçları[[#This Row],[Kredi Miktarı]]:ÜniversiteBorçları[[#This Row],[Süre (Yıl)]])<>4,"",PMT(ÜniversiteBorçları[[#This Row],[Yıllık Faiz Oranı]]/12,ÜniversiteBorçları[[#This Row],[Süre (Yıl)]]*12,-ÜniversiteBorçları[[#This Row],[Kredi Miktarı]],0,0)) -> 75.48 TL | M16: =IFERROR(ÜniversiteBorçları[[#This Row],[Zamanlanan Ödeme]]*12,"") -> 905.82 TL
C17: Toplam | E17: =SUBTOTAL(109,ÜniversiteBorçları[Kredi Miktarı]) -> 28,000.00 TL | J17: =SUBTOTAL(109,ÜniversiteBorçları[Şu Anki Aylık Ödeme]) -> 328.59 TL | K17: =SUBTOTAL(109,ÜniversiteBorçları[Toplam Faiz]) -> 6,901.21 TL | L17: =SUBTOTAL(109,ÜniversiteBorçları[Zamanlanan Ödeme]) -> 328.59 TL | M17: =SUBTOTAL(109,ÜniversiteBorçları[Yıllık Ödeme]) -> 3,943.03 TL
C18: Ortalamalar | E18: =AVERAGE(ÜniversiteBorçları[Kredi Miktarı]) -> 7,000.00 TL | F18: =AVERAGE(ÜniversiteBorçları[Yıllık Faiz Oranı]) -> 4.88% | K18: =AVERAGE(ÜniversiteBorçları[Toplam Faiz]) -> 1,725.30 TL | M18: =AVERAGE(ÜniversiteBorçları[Yıllık Ödeme]) -> 985.76 TL
K20: Toplam Birleştirilmiş Kredi Geri Ödeme: | M20: =ÜniversiteBorçları[[#Totals],[Kredi Miktarı]]+ÜniversiteBorçları[[#Totals],[Toplam Faiz]] -> 34,901.21 TL
K22: Mezuniyet Sonrası Tahmini Aylık Gelir: | M22: =(TahminiYıllıkMaaş/12) -> 4,166.67 TL
